bitfinex/quotes_ETHUSD_20250329
["timestamp","ask_amount","ask_price","bid_price","bid_amount"]
[1743280525889,0.1216886,1827.8,1827.6,0.8206]
[1743280526108,7.52422316,1827.9,1827.6,0.8206]
[1743280526412,0.1216886,1827.8,1827.6,0.8206]
[1743280526715,12.99499316,1827.9,1827.6,0.8206]
[1743280526910,5.5927686,1827.8,1827.4,6.29267]
[1743280527082,5.8697686,1827.8,1827.4,6.29267]
[1743280527926,2.23522316,1827.7,1827.4,5.47197]
[1743280528095,12.99499316,1827.9,1827.5,5.47181]
[1743280528415,5.4076886,1827.8,1827.5,0.8206]
[1743280528782,5.4076886,1827.8,1827.5,6.2925]
[1743280528978,5.4076886,1827.8,1827.5,6.2924]
[1743280529183,5.4076886,1827.8,1827.6,5.47161]
[1743280530618,0.1216886,1827.8,1827.6,6.647871]
[1743280530817,0.1216886,1827.8,1827.7,6.29195]
[1743280531112,0.11890144,1827.8,1827.6,6.647871]
[1743280531300,2.23522316,1827.9,1827.6,6.647871]
[1743280531494,0.37168936,1827.8,1827.6,6.647871]
[1743280531691,2.23522316,1827.9,1827.6,6.647871]
[1743280532016,0.37168936,1827.8,1827.6,6.647871]
[1743280532386,2.23522316,1827.9,1827.6,6.647871]
[1743280532620,0.37180551,1827.8,1827.6,6.647871]
[1743280532916,2.23522316,1827.9,1827.6,6.647871]
[1743280533114,0.37180551,1827.8,1827.5,6.29248]
[1743280533313,13.27510316,1827.9,1827.5,6.29248]
[1743280533516,0.37180551,1827.8,1827.5,11.76427]
[1743280533810,7.80422316,1827.9,1827.6,5.47162]
[1743280534022,7.80422316,1827.9,1827.6,10.94312]
[1743280534184,7.52722316,1827.9,1827.6,10.943]
[1743280534587,2.51222316,1828.1,1827.7,5.4713]
[1743280534816,5.4707,1828.0,1827.6,17.845929]
[1743280535090,2.23522316,1827.9,1827.6,15.65157]
[1743280536026,2.51222316,1828.1,1827.7,5.47131]
[1743280536275,5.299,1828.0,1827.8,5.47085]
[1743280536524,2.51222316,1828.1,1828.0,5.47045]
[1743280536525,5.23522316,1828.1,1828.0,5.47045]
[1743280537527,5.23522316,1828.1,1827.9,6.24415]
[1743280537726,5.23522316,1828.1,1827.9,11.71478]
[1743280538032,10.53322316,1828.3,1828.0,10.94063]
[1743280538397,2.23522316,1828.3,1828.1,5.47014]
[1743280538602,2.23522316,1828.3,1828.0,5.47018]
[1743280538909,7.70490316,1828.3,1827.8,15.65102]
[1743280539120,8.299,1828.4,1827.8,10.17999]
[1743280539121,7.70538316,1828.1,1827.8,10.17999]
[1743280540427,2.23522316,1828.1,1827.8,15.65104]
[1743280540917,2.23522316,1828.1,1827.8,10.17999]
[1743280541116,2.23522316,1828.1,1827.8,15.65102]
[1743280542641,2.23522316,1828.1,1827.8,5.47103]
[1743280543448,8.72013333,1828.4,1828.0,5.47045]
[1743280543449,3.0,1828.4,1828.0,5.47045]
[1743280543741,10.53322316,1828.4,1828.2,5.46976]
[1743280544116,10.53322316,1828.4,1828.1,5.47]
[1743280544316,10.53222316,1828.4,1828.1,5.47]
[1743280544922,10.53222316,1828.4,1828.1,10.93995]
[1743280545128,10.53222316,1828.4,1828.2,5.46975]
[1743280546062,2.23522316,1828.6,1828.2,1.09397]
[1743280546268,7.52722316,1828.6,1828.4,5.46909]
[1743280547750,0.34539623,1828.5,1828.4,5.46909]
[1743280549204,5.286,1828.8,1828.5,5.46889]
[1743280549406,0.34539623,1828.7,1828.5,5.46889]
[1743280551575,2.58061939,1828.7,1828.5,5.46889]
[1743280552771,0.34539623,1828.7,1828.5,7.63521421]
[1743280552976,0.34539623,1828.7,1828.6,5.46866]
[1743280553171,0.34539623,1828.7,1828.6,6.26456]
[1743280553375,7.52022316,1828.9,1828.7,5.46836]
[1743280553376,3.0,1828.8,1828.7,5.46836]
[1743280553590,0.34778291,1828.8,1828.7,5.46836]
[1743280553894,2.23522316,1828.9,1828.8,5.46806]
[1743280554073,0.32123465,1828.8,1828.7,5.46836]
[1743280554262,2.23522316,1828.9,1828.7,5.46836]
[1743280554467,0.3219349,1828.8,1828.7,5.46836]
[1743280554668,0.3219349,1828.8,1828.7,6.54483307]
[1743280554898,2.23522316,1828.9,1828.7,6.54483307]
[1743280555114,0.3219349,1828.8,1828.7,5.46836]
[1743280555482,2.23522316,1828.9,1828.7,5.46836]
[1743280555683,0.3219349,1828.8,1828.7,5.46836]
[1743280556113,5.285,1829.0,1828.8,5.46806]
[1743280556910,5.23522316,1829.1,1828.9,5.46757]
[1743280557093,5.23522316,1829.1,1828.8,5.46806]
[1743280559831,5.23522316,1829.1,1828.7,15.6482]
[1743280560001,5.23522316,1829.1,1828.8,5.46785]
[1743280560520,5.23522316,1829.1,1828.8,5.46806]
[1743280560837,2.23522316,1829.5,1829.2,5.46687]
[1743280561032,2.23522316,1829.5,1829.2,5.46674]
[1743280561350,7.52022316,1829.5,1829.2,10.93341]
[1743280561839,2.23522316,1829.5,1829.2,10.93341]
[1743280562015,5.284,1829.6,1829.4,5.46611]
[1743280562335,5.284,1829.6,1829.3,6.28149]
[1743280562534,5.284,1829.6,1829.3,6.909639]
[1743280562690,7.51922316,1829.7,1829.3,6.909639]
[1743280562890,0.27574591,1829.5,1829.3,6.909639]
[1743280563100,7.51922316,1829.7,1829.3,6.909639]
[1743280563306,0.27574591,1829.4,1829.3,6.909639]
[1743280563628,0.27574591,1829.4,1829.3,6.909629]
[1743280563857,12.98474316,1829.7,1829.3,6.909629]
[1743280563992,0.27644896,1829.4,1829.3,6.909629]
[1743280564189,12.98474316,1829.7,1829.3,6.909629]
[1743280564190,12.98474316,1829.7,1829.3,12.375959]
[1743280564417,0.27644896,1829.6,1829.4,6.7038359]
[1743280564610,7.51922316,1829.7,1829.4,6.7038359]
[1743280564921,0.27633179,1829.6,1829.4,6.7038359]
[1743280565295,7.51922316,1829.7,1829.4,6.7038359]
[1743280565495,0.27633179,1829.5,1829.4,1.2375959]
[1743280565906,12.98471316,1829.7,1829.4,1.2375959]
[1743280566423,0.27633179,1829.6,1829.4,1.2375959]
[1743280567019,12.98471316,1829.7,1829.4,1.2375959]
[1743280567221,0.27633179,1829.6,1829.4,1.2375959]
[1743280567602,7.70119316,1829.5,1829.2,10.17999]
[1743280567802,0.27633179,1829.4,1829.2,10.17999]
[1743280569027,2.23522316,1829.3,1829.2,10.17999]
[1743280569252,7.97879316,1829.3,1829.2,10.17999]
[1743280569454,13.26179316,1829.3,1829.2,10.17999]
[1743280569604,13.53812495,1829.3,1829.2,10.17999]
[1743280570172,7.79455495,1829.3,1829.2,15.64686]
[1743280570330,0.27633179,1829.3,1829.2,12.531876]
[1743280570530,2.23522316,1829.3,1829.2,10.17999]
[1743280570856,2.51155495,1829.3,1829.2,10.17999]
[1743280571426,7.97812495,1829.3,1829.2,10.17999]
[1743280571932,13.72197495,1829.3,1828.9,10.17999]
[1743280572128,13.72197495,1829.3,1828.9,15.64753]
[1743280572129,8.25512495,1829.3,1828.9,15.64753]
[1743280572326,8.25512495,1829.3,1829.0,5.46743]
[1743280572528,8.25512495,1829.3,1828.9,15.64753]
[1743280572952,8.25512495,1829.3,1828.9,21.11508]
[1743280573922,2.78855495,1829.3,1829.0,5.46745]
[1743280574073,2.78855495,1829.3,1829.0,5.46735]
[1743280574576,8.25513495,1829.3,1829.0,5.46735]
[1743280574736,2.78855495,1829.3,1829.0,5.46735]
[1743280575141,7.79455495,1829.3,1829.1,5.46716]
[1743280575369,7.79455495,1829.3,1829.0,5.46735]
[1743280578279,0.27633179,1829.3,1829.2,5.46687]
[1743280578783,0.27650809,1829.3,1829.2,10.93346]
[1743280579086,3.0,1829.5,1829.2,10.93346]
[1743280579270,0.27650809,1829.3,1829.2,10.93346]
[1743280579471,3.0,1829.5,1829.2,10.93346]
[1743280579954,0.27650809,1829.4,1829.2,10.93346]
[1743280580273,0.27650809,1829.4,1829.3,6.21667]
[1743280580571,0.05,1829.9,1829.6,5.46552]
[1743280580873,0.27650809,1829.8,1829.6,5.46552]
[1743280581174,3.05,1829.9,1829.6,5.46552]
[1743280581381,3.05,1829.9,1829.7,5.4653]
[1743280581382,0.2777386,1829.8,1829.7,5.4653]
[1743280581578,3.05,1829.9,1829.6,5.46552]
[1743280581869,0.27902741,1829.8,1829.6,5.46552]
[1743280582175,3.05,1829.9,1829.6,5.46552]
[1743280582675,0.27902741,1829.8,1829.7,5.46537]
[1743280583080,3.05,1829.9,1829.7,5.46537]
[1743280583286,0.27943742,1829.8,1829.7,5.46537]
[1743280583444,0.27943742,1829.8,1829.7,6.633483]
[1743280583645,0.05,1829.9,1829.8,6.21517]
[1743280584151,0.05,1829.9,1829.8,16.99980579]
[1743280584355,0.05,1829.9,1829.8,16.94516]
[1743280584773,0.05,1829.9,1829.8,16.39516]
[1743280584979,0.05,1829.9,1829.8,10.17999]
[1743280585146,0.05,1829.9,1829.8,17.9479243]
[1743280585341,0.05,1829.9,1829.8,12.4828543]
[1743280585558,0.05,1829.9,1829.8,10.17999]
[1743280585775,0.05,1829.9,1829.8,15.64506]
[1743280586195,0.05,1829.9,1829.8,16.94516]
[1743280586875,0.05,1829.9,1829.8,16.39516]
[1743280589656,0.05,1829.9,1829.8,10.17999]
[1743280589859,0.05,1829.9,1829.8,15.64506]
[1743280590259,0.05,1829.9,1829.8,10.17999]
[1743280590768,0.05,1829.9,1829.8,15.64506]
[1743280590968,0.05,1829.9,1829.8,17.756077]
[1743280591366,0.05,1829.9,1829.8,15.64506]
[1743280591677,0.05,1829.9,1829.8,6.21517]
[1743280592570,0.33763681,1829.9,1829.8,6.21517]
[1743280592769,0.33763681,1829.9,1829.8,16.39516]
[1743280595655,0.33763681,1829.9,1829.8,16.94516]
[1743280595854,0.33763681,1829.9,1829.8,19.186188]
[1743280596251,0.33763681,1829.9,1829.8,18.636188]
[1743280599884,0.33763681,1829.9,1829.8,19.186188]
[1743280600263,0.33763681,1829.9,1829.8,18.636188]
[1743280600468,0.33763681,1829.9,1829.8,17.886088]
[1743280600679,9.2e-06,1830.1,1829.8,18.436088]
[1743280600992,0.2771,1831.2,1830.4,0.7631]
[1743280601285,2.23522316,1830.9,1830.5,16.19276]
[1743280601487,2.23522316,1830.9,1830.6,10.17999]
[1743280601488,0.2771,1830.8,1830.6,10.17999]
[1743280601670,5.7392,1830.8,1830.5,10.17999]
[1743280601870,0.2771,1830.8,1830.5,11.197989]
[1743280603189,7.53622316,1830.9,1830.6,5.46245]
[1743280603392,7.53622316,1830.9,1830.7,5.46224]
[1743280603595,7.53622316,1830.9,1830.6,5.46245]
[1743280603795,7.53622316,1830.9,1830.6,7.2048039]
[1743280603955,2.23522316,1830.9,1830.6,7.2048039]
[1743280604288,0.2771,1831.0,1830.8,5.46183]
[1743280604480,7.53522316,1831.1,1830.8,5.46183]
[1743280605171,2.51232316,1830.9,1830.6,5.46268]
[1743280605369,2.51232316,1830.9,1830.6,7.1287469]
[1743280605969,7.97413316,1830.9,1830.5,11.197989]
[1743280606179,7.97413316,1830.9,1830.5,10.17999]
[1743280607793,7.97413316,1830.9,1830.5,15.64289]
[1743280607794,2.51232316,1830.9,1830.5,15.64289]
[1743280608358,0.24635315,1830.8,1830.5,15.64289]
[1743280608565,7.97415316,1830.9,1830.5,15.64289]
[1743280608762,0.24635315,1830.8,1830.5,15.64289]
[1743280608965,7.97415316,1830.9,1830.5,15.64289]
[1743280609196,0.24635315,1830.8,1830.5,10.17999]
[1743280609392,9.61773948,1830.9,1830.5,15.64295]
[1743280609596,0.52345315,1830.8,1830.4,5.46307]
[1743280609798,0.52345315,1830.8,1830.3,15.64356]
[1743280609968,5.98555315,1830.8,1830.3,15.64356]
[1743280610170,0.52345315,1830.8,1830.4,5.46328]
[1743280610380,5.98558315,1830.8,1830.4,5.46328]
[1743280610580,5.98558315,1830.8,1830.3,17.885374]
[1743280610788,0.52345315,1830.8,1830.4,5.46316]
[1743280610987,5.98556315,1830.8,1830.3,17.885374]
[1743280611293,5.98556315,1830.8,1830.3,23.348704]
[1743280611707,7.51818341,1830.8,1830.3,23.348824]
[1743280611880,7.51818341,1830.8,1830.3,21.10677]
[1743280612072,7.97471316,1830.7,1830.3,10.17999]
[1743280612393,13.26371316,1830.7,1830.3,10.17999]
[1743280612609,0.2771,1830.4,1830.0,15.64433]
[1743280612790,0.24793702,1830.3,1830.0,15.64445]
[1743280614998,0.24793702,1830.3,1830.0,21.10891]
[1743280615197,0.24793702,1830.3,1830.0,15.64434]
[1743280615999,0.24793702,1830.3,1830.0,5.46435]
[1743280616495,0.24793702,1830.3,1830.0,10.9287]
[1743280616699,0.24793702,1830.3,1830.2,5.46388]
[1743280616889,0.24793702,1830.3,1830.2,6.28811457]
[1743280617063,5.5631,1830.6,1830.3,5.46355]
[1743280618471,5.5631,1830.6,1830.2,6.23348]
[1743280618803,2.23522316,1830.5,1830.0,13.809289]
[1743280619100,13.94136548,1830.5,1830.0,13.809289]
[1743280619305,3.01505548,1830.5,1830.2,5.46369]
[1743280619596,5.5631,1830.6,1830.3,5.46358]
[1743280619902,5.5631,1830.6,1830.3,5.46337]
[1743280620403,5.5631,1830.6,1830.1,5.46406]
[1743280620404,0.2771,1830.4,1830.1,5.46406]
[1743280621496,0.2771,1830.4,1830.0,5.4644]
[1743280621699,2.23522316,1830.3,1830.0,5.46442]
[1743280621902,2.23522316,1830.3,1830.0,15.64441]
[1743280622097,7.69884316,1830.3,1830.0,10.17999]
[1743280622296,2.23522316,1830.3,1830.0,10.17999]
[1743280622602,0.24652977,1830.2,1830.0,10.17999]
[1743280623296,0.2771,1830.1,1830.0,10.17999]
[1743280623701,7.97668316,1830.1,1829.8,10.17999]
[1743280623928,8.22321293,1830.1,1829.8,10.17999]
[1743280624129,8.22321293,1830.1,1829.2,5.279]
[1743280624130,0.2771,1829.8,1829.4,15.64611]
[1743280624275,2.23522316,1829.7,1829.3,15.64652]
[1743280624480,2.47835157,1829.7,1829.3,15.64652]
[1743280624714,2.47835157,1829.7,1829.3,17.834801]
[1743280625202,7.94387157,1829.7,1829.3,12.368271]
[1743280626422,7.94387157,1829.7,1829.3,17.834791]
[1743280627100,7.94387157,1829.7,1829.3,10.17999]
[1743280627101,2.51232316,1829.5,1829.3,10.17999]
[1743280627475,0.24013621,1829.4,1829.3,10.17999]
[1743280629306,0.24013621,1829.4,1829.3,16.97766]
[1743280629806,0.23966669,1829.4,1829.3,16.97766]
[1743280630005,5.28,1830.1,1829.8,5.46489]
[1743280630422,0.21965586,1830.0,1829.8,5.46489]
[1743280630796,0.21965586,1830.0,1829.7,5.46529]
[1743280631423,0.21965586,1830.0,1829.7,10.93058]
[1743280631722,0.21965586,1830.0,1829.9,5.46477]
[1743280631937,0.21965586,1830.0,1829.7,10.93049]
[1743280632234,0.21965586,1830.0,1829.8,3.0]
[1743280632723,0.21965586,1830.0,1829.7,2.111048]
[1743280632887,2.51232316,1829.9,1829.6,10.17999]
[1743280633218,7.97716316,1829.9,1829.6,10.17999]
[1743280633421,0.21965586,1829.8,1829.6,10.17999]
[1743280633718,7.97716316,1829.9,1829.6,10.17999]
[1743280633939,0.21965586,1829.7,1829.6,10.17999]
[1743280634216,0.21965586,1829.7,1829.5,15.64593]
[1743280634417,0.21965586,1829.7,1829.5,17.757149]
[1743280634619,0.21754394,1829.6,1829.5,17.757149]
[1743280634922,5.28,1829.8,1829.6,5.46554]
[1743280635106,5.28,1829.8,1829.7,5.46537]
[1743280635821,5.28,1829.8,1829.6,5.46554]
[1743280637324,0.21754394,1829.7,1829.6,5.46554]
[1743280637523,0.21754394,1829.7,1829.6,6.88458273]
[1743280638721,0.21754394,1829.7,1829.6,6.9392373]
[1743280639227,5.28,1830.0,1829.7,5.46526]
[1743280640126,10.74449,1830.0,1829.6,10.17999]
[1743280640325,8.77459216,1829.9,1829.6,10.17999]
[1743280640532,2.23522316,1829.9,1829.6,15.64565]
[1743280641127,7.70002316,1829.9,1829.6,10.17999]
[1743280641315,7.70002316,1829.9,1829.3,15.64648]
[1743280641316,7.70075316,1829.7,1829.3,15.64648]
[1743280643810,2.51232316,1829.5,1829.3,10.17999]
[1743280644427,2.23522316,1829.5,1829.3,10.17999]
[1743280645212,2.23522316,1829.5,1829.2,5.46676]
[1743280645418,7.70196316,1829.3,1828.9,10.96279]
[1743280645614,6.23729632,1829.2,1828.9,10.17999]
[1743280645943,2.23522316,1829.1,1828.9,10.17999]
[1743280646121,2.23522316,1829.1,1828.7,16.43093]
[1743280646861,7.70249316,1829.1,1828.7,10.96279]
[1743280647026,13.16991316,1829.1,1828.7,10.96279]
[1743280647340,13.16979316,1829.1,1828.7,10.96279]
[1743280647550,13.16979316,1829.1,1828.4,10.17999]
[1743280647551,5.46831,1828.8,1828.4,10.17999]
[1743280647712,7.98085316,1828.7,1828.4,10.17999]
[1743280648127,2.51232316,1828.7,1828.4,10.17999]
[1743280648412,2.51232316,1828.7,1828.4,15.64895]
[1743280648622,2.51232316,1828.7,1828.4,17.292125]
[1743280649421,7.98071316,1828.7,1828.4,10.17999]
[1743280649621,7.70418316,1828.5,1828.1,10.22999]
[1743280649953,5.46932,1828.4,1828.1,10.22999]
[1743280651032,7.70418316,1828.5,1828.1,15.75478618]
[1743280651227,7.70418316,1828.5,1828.2,1.57547862]
[1743280651813,10.75072,1828.6,1828.2,7.04521862]
[1743280652014,10.75072,1828.6,1828.2,1.57547862]
[1743280652845,5.46927,1828.4,1828.2,1.57547862]
[1743280653047,5.68022678,1828.5,1828.2,1.57547862]
[1743280653215,5.4692,1828.5,1828.2,1.57547862]
[1743280653415,0.21102678,1828.4,1828.2,1.57547862]
[1743280654012,0.21102678,1828.4,1828.2,11.75546862]
[1743280654840,0.21102678,1828.4,1828.2,10.17999]
[1743280655209,0.21102678,1828.4,1828.2,15.64981]
[1743280655418,0.21102678,1828.4,1828.3,6.33875377]
[1743280655710,0.40773344,1828.7,1828.3,6.33875377]
[1743280655924,0.20321502,1828.4,1828.3,6.33875377]
[1743280656124,5.283,1828.8,1828.4,5.46896]
[1743280656324,5.4685,1828.7,1828.4,10.17999]
[1743280656523,5.67171502,1828.7,1828.4,10.17999]
[1743280659721,11.14033502,1828.7,1828.4,10.17999]
[1743280660051,5.67171502,1828.7,1828.4,10.17999]
[1743280660220,5.67171502,1828.7,1828.4,12.04626064]
[1743280660842,11.14031502,1828.7,1828.4,12.04626064]
[1743280661037,5.67171502,1828.7,1828.4,12.04626064]
[1743280661645,0.20321502,1828.7,1828.4,17.51548064]
[1743280661851,0.20321502,1828.7,1828.4,12.04626064]
[1743280662346,0.20321502,1828.7,1828.5,1.20462606]
[1743280662718,5.67157502,1828.7,1828.5,1.20462606]
[1743280663457,0.20321502,1828.7,1828.5,1.20462606]
[1743280667859,5.67171502,1828.7,1828.5,1.20462606]
[1743280668061,5.67171502,1828.7,1828.1,0.05]
[1743280668062,5.74606,1828.5,1828.1,0.05]
[1743280668265,7.70508316,1828.2,1828.1,0.05]
[1743280668462,7.98218316,1828.2,1828.1,0.05]
[1743280668763,9.07486004,1828.2,1828.1,0.05]
[1743280668966,9.27778152,1828.2,1828.1,0.05]
[1743280673653,9.69400473,1828.2,1828.1,0.05]
[1743280674739,16.15568273,1828.2,1828.1,0.05]
[1743280675166,12.69400473,1828.2,1828.1,0.05]
[1743280682944,0.61914469,1828.2,1828.1,0.05]
[1743280683170,11.37400469,1828.2,1828.1,0.05]
[1743280683355,14.37400469,1828.2,1828.1,0.05]
[1743280684375,14.65110469,1828.2,1828.1,0.05]
[1743280687795,5.47246,1827.4,1827.1,0.8073]
[1743280688080,2.23522316,1827.3,1827.1,0.8073]
[1743280688392,2.42903219,1827.3,1827.1,0.8073]
[1743280688682,7.90160219,1827.3,1827.1,0.8073]
[1743280688881,5.47285,1827.2,1827.1,0.8073]
[1743280689081,5.47315,1827.1,1827.0,10.17999]
[1743280689473,5.66101709,1827.1,1827.0,10.17999]
[1743280689986,2.42309025,1827.1,1827.0,10.17999]
[1743280691756,0.18786709,1827.1,1827.0,17.29952]
[1743280691956,5.286,1827.4,1827.2,5.47283]
[1743280692179,0.18733743,1827.3,1827.2,0.8073]
[1743280692486,0.18733743,1827.3,1827.2,6.28015]
[1743280692683,3.0,1827.5,1827.2,6.28015]
[1743280692853,0.18733743,1827.3,1827.2,6.28015]
[1743280693057,3.0,1827.5,1827.2,8.473455]
[1743280693284,0.18733743,1827.3,1827.2,6.28015]
[1743280693457,3.0,1827.5,1827.2,6.28015]
[1743280693657,0.18733743,1827.3,1827.2,6.28015]
[1743280693857,3.0,1827.5,1827.2,6.28015]
[1743280694156,11.16511477,1827.6,1827.2,6.28015]
[1743280694355,0.18733743,1827.5,1827.2,6.28015]
[1743280694578,0.18733743,1827.5,1827.2,8.473455]
[1743280695483,0.18733743,1827.5,1827.4,6.27955]
[1743280695785,36.48322316,1827.7,1827.4,6.27955]
[1743280695979,0.18733743,1827.5,1827.4,0.8073]
[1743280696179,36.48322316,1827.7,1827.4,0.8073]
[1743280696180,41.95461316,1827.7,1827.4,0.8073]
[1743280696381,0.18733743,1827.5,1827.4,0.8073]
[1743280696581,47.42625316,1827.7,1827.4,0.8073]
[1743280696785,0.18733743,1827.5,1827.4,0.8073]
[1743280696959,47.42625316,1827.7,1827.4,0.8073]
[1743280697164,5.65910743,1827.6,1827.4,0.8073]
[1743280698056,0.18733743,1827.6,1827.4,0.8073]
[1743280699497,5.65901743,1827.6,1827.4,0.8073]
[1743280699865,5.65901743,1827.6,1827.2,15.65262]
[1743280699866,5.47238,1827.4,1827.2,10.17999]
[1743280700060,7.70777316,1827.3,1827.2,10.17999]
[1743280700257,12.99377316,1827.3,1827.2,10.17999]
[1743280700461,13.18111059,1827.3,1827.2,10.17999]
[1743280700672,15.04645965,1827.3,1827.2,10.17999]
[1743280703971,5.47302,1827.2,1826.9,0.7965]
[1743280704168,5.65969356,1827.1,1826.9,0.7965]
[1743280704598,0.18651356,1827.1,1826.9,0.7965]
[1743280705062,5.47302,1827.2,1826.9,0.7965]
[1743280705270,0.18651356,1827.0,1826.9,0.7965]
[1743280705471,5.47302,1827.2,1826.9,0.7965]
[1743280705697,0.18651356,1827.0,1826.9,0.7965]
[1743280705899,5.47302,1827.2,1826.9,0.7965]
[1743280706103,0.18651356,1827.0,1826.9,0.7965]
[1743280706271,5.8852771,1827.2,1826.9,0.7965]
[1743280706477,0.18651356,1827.0,1826.9,0.7965]
[1743280706671,5.8852771,1827.2,1826.9,0.7965]
[1743280706899,0.18651356,1827.0,1826.9,0.7965]
[1743280707101,0.18651356,1827.0,1826.8,15.65403]
[1743280707503,5.8852771,1827.2,1826.8,15.65403]
[1743280708002,0.18651356,1827.1,1826.8,15.65403]
[1743280708300,5.8852771,1827.2,1826.8,15.65403]
[1743280708502,0.18651356,1827.1,1826.8,15.65403]
[1743280708807,5.8852771,1827.2,1826.8,15.65403]
[1743280709107,0.18651356,1827.0,1826.9,5.47375]
[1743280709290,0.4122571,1827.2,1826.9,5.47375]
[1743280709491,0.18651356,1827.0,1826.9,5.47375]
[1743280709679,20.33182222,1827.3,1826.9,5.47375]
[1743280709873,0.18651356,1827.0,1826.9,5.47375]
[1743280710084,20.33182222,1827.3,1826.9,5.47375]
[1743280710297,0.18651356,1827.0,1826.9,5.47375]
[1743280710498,7.98440316,1827.5,1827.1,5.47314]
[1743280710697,5.47257,1827.3,1827.0,0.7965]
[1743280710902,7.70779316,1827.3,1827.0,6.26994]
[1743280711413,13.18054316,1827.3,1827.0,0.7965]
[1743280711706,7.70779316,1827.3,1827.0,0.7965]
[1743280711882,2.23522316,1827.3,1827.0,6.26993]
[1743280712228,7.70782316,1827.3,1827.0,0.7965]
[1743280712824,5.6594147,1827.2,1826.9,10.17999]
[1743280713025,0.1864547,1827.2,1826.9,10.17999]
[1743280713605,0.1864547,1827.2,1826.9,15.65371]
[1743280713808,0.1864547,1827.2,1827.0,6.26966]
[1743280714182,5.286,1827.4,1827.1,5.47315]
[1743280714402,0.18639587,1827.3,1827.1,5.47315]
[1743280714608,0.18639587,1827.3,1827.0,6.26966]
[1743280714816,10.75828,1827.4,1827.0,6.26966]
[1743280714989,0.18633701,1827.2,1827.0,6.26966]
[1743280715189,10.75828,1827.4,1827.0,6.26966]
[1743280715507,0.18633701,1827.1,1827.0,6.26966]
[1743280715684,2.23522316,1827.3,1827.0,6.26966]
[1743280716082,0.18633701,1827.2,1827.0,6.26966]
[1743280716283,0.18633701,1827.2,1827.0,7.49873012]
[1743280716479,0.18633701,1827.2,1827.1,6.25115]
[1743280716684,5.286,1827.6,1827.4,0.778]
[1743280716981,7.52122316,1827.6,1827.4,0.778]
[1743280718914,12.99293316,1827.6,1827.2,10.95799]
[1743280719210,2.23522316,1827.4,1827.2,10.17999]
[1743280721710,11.03475,1827.6,1827.4,6.25023]
[1743280721711,7.52122316,1827.6,1827.4,6.25023]
[1743280721916,7.52122316,1827.6,1827.4,0.778]
[1743280723116,5.47021,1828.1,1827.4,0.778]
[1743280723117,6.59325586,1828.2,1827.4,0.778]
[1743280723314,6.59325586,1828.2,1827.9,0.778]
[1743280723315,3.35850902,1828.2,1827.9,0.778]
[1743280723525,3.35850902,1828.2,1827.9,6.24872]
[1743280723813,36.49222316,1828.3,1827.9,11.71925]
[1743280723988,3.0,1828.2,1827.9,11.71925]
[1743280724188,3.0,1828.2,1828.0,5.4704]
[1743280724717,3.0,1828.2,1827.9,6.24853]
[1743280724898,31.20622316,1828.3,1828.0,5.47033]
[1743280725097,36.49222316,1828.3,1828.0,5.47033]
[1743280725299,3.0,1828.2,1828.0,5.47033]
[1743280726219,36.49222316,1828.3,1827.9,16.4287]
[1743280726518,2.23522316,1828.1,1827.9,10.17999]
[1743280727921,0.19227893,1828.0,1827.9,15.65072]
[1743280728923,0.19227893,1828.0,1827.9,10.17999]
[1743280730324,0.19227893,1828.0,1827.8,5.47077]
[1743280731622,0.19227893,1828.0,1827.9,5.47075]
[1743280732818,0.19227893,1828.0,1827.7,0.7969]
[1743280733012,0.19227893,1828.0,1827.7,6.26806]
[1743280734025,0.19227893,1828.0,1827.8,5.471]
[1743280735512,0.19227893,1828.0,1827.9,5.47075]
[1743280743835,0.19227893,1828.0,1827.8,5.471]
[1743280744131,0.19227893,1828.0,1827.8,10.94185]
[1743280744500,0.19227893,1828.0,1827.8,10.94174]
[1743280746141,0.19227893,1828.0,1827.9,5.47075]
[1743280747435,5.4712,1827.8,1827.4,10.93999]
[1743280747643,7.70694316,1827.6,1827.2,6.2326]
[1743280747931,7.70694316,1827.6,1827.3,5.47255]
[1743280747932,7.51822316,1827.6,1827.3,5.47255]
[1743280748101,7.79532316,1827.6,1827.2,11.70547]
[1743280748306,0.19527936,1827.5,1827.3,5.47254]
[1743280748928,0.19527936,1827.5,1827.1,10.17999]
[1743280748929,0.19527936,1827.5,1827.1,15.65312]
[1743280749235,0.19527936,1827.5,1827.1,10.17999]
[1743280749236,7.70754316,1827.4,1827.1,10.17999]
[1743280749433,2.23522316,1827.4,1827.0,11.70666]
[1743280749610,0.19127973,1827.3,1827.0,11.70666]
[1743280749807,2.23522316,1827.4,1827.1,5.47292]
[1743280750009,0.19127973,1827.3,1827.2,5.47284]
[1743280750340,13.26703316,1827.6,1827.2,5.47284]
[1743280750506,0.19127973,1827.3,1827.2,5.47284]
[1743280750709,14.37020916,1827.6,1827.2,5.47284]
[1743280750936,0.19127973,1827.3,1827.2,5.47284]
[1743280751134,14.37020916,1827.6,1827.2,5.47284]
[1743280751313,0.19127973,1827.3,1827.2,5.47284]
[1743280751516,14.37020916,1827.6,1827.2,5.47284]
[1743280751706,0.18969111,1827.3,1827.2,5.47284]
[1743280751907,14.37020916,1827.6,1827.2,5.47284]
[1743280752110,0.18969111,1827.3,1827.1,5.47313]
[1743280752317,2.23522316,1827.4,1827.1,5.47313]
[1743280752518,0.18969111,1827.2,1827.1,5.47313]
[1743280752716,2.23522316,1827.4,1827.1,5.47313]
[1743280752929,0.18992649,1827.2,1827.1,5.47313]
[1743280753128,2.23522316,1827.4,1827.1,5.47313]
[1743280753328,0.18998534,1827.2,1827.1,5.47313]
[1743280753522,2.23522316,1827.4,1827.1,5.47313]
[1743280753728,0.18998534,1827.2,1827.1,5.47313]
[1743280754059,0.18986765,1827.2,1827.1,5.47313]
[1743280754434,2.23522316,1827.4,1827.1,5.47313]
[1743280754636,0.18986765,1827.2,1827.1,5.47313]
[1743280754818,2.23522316,1827.4,1827.1,5.47313]
[1743280755017,0.18986765,1827.3,1827.1,5.47313]
[1743280755218,2.23522316,1827.4,1827.1,5.47313]
[1743280755424,0.18986765,1827.3,1827.1,5.47313]